bitfinex/quotes_ETHUSD_20250814
["timestamp","ask_amount","ask_price","bid_price","bid_amount"]
[1755150067985,20.65032725,4728.7,4728.6,3.245]
[1755150068470,3.0,4728.6,4728.1,0.021]
[1755150068768,0.9436,4728.5,4728.1,0.021]
[1755150068979,0.1056,4728.2,4728.1,0.021]
[1755150069363,0.5768,4728.2,4728.1,0.021]
[1755150069565,5.89692065,4728.2,4728.1,0.021]
[1755150069746,5.89692065,4728.2,4728.1,3.265]
[1755150072344,4.95332065,4728.2,4728.1,3.265]
[1755150072550,3.09840065,4728.2,4728.1,3.265]
[1755150072882,17.59840065,4728.2,4728.1,3.265]
[1755150073891,17.59840065,4728.2,4728.1,0.021]
[1755150074057,17.59840065,4728.2,4728.1,3.265]
[1755150076006,3.09840065,4728.2,4728.1,3.265]
[1755150076297,3.46607023,4728.2,4728.1,3.265]
[1755150077292,4.40967023,4728.2,4728.1,0.021]
[1755150077593,4.40967023,4728.2,4728.1,3.265]
[1755150077996,4.40967023,4728.2,4727.1,5.088]
[1755150078292,0.1056,4727.2,4727.1,5.088]
[1755150079072,0.1056,4727.2,4727.1,8.332]
[1755150079602,0.1056,4727.2,4727.1,5.088]
[1755150079891,0.1056,4727.2,4727.1,8.332]
[1755150080495,0.5768,4727.2,4727.1,8.332]
[1755150080997,1.0492,4727.2,4727.1,8.332]
[1755150083196,0.1056,4727.2,4727.1,8.332]
[1755150085790,0.5611,4727.2,4727.1,8.332]
[1755150086202,0.1056,4727.2,4727.1,8.332]
[1755150091502,0.1056,4727.2,4727.1,8.76]
[1755150091897,0.1056,4727.2,4727.1,8.332]
[1755150092134,0.1056,4727.2,4727.1,8.76]
[1755150092301,0.1056,4727.2,4727.1,9.2265]
[1755150093072,0.1056,4727.2,4727.1,8.332]
[1755150094078,0.5611,4727.2,4727.1,8.332]
[1755150094578,0.1056,4727.2,4727.1,8.332]
[1755150095182,0.5611,4727.2,4727.1,8.332]
[1755150095489,1.0127,4727.2,4727.1,8.332]
[1755150097207,0.5611,4727.2,4727.1,5.088]
[1755150097409,1.0127,4727.2,4727.1,8.332]
[1755150097914,1.41397,4727.2,4727.1,8.332]
[1755150100123,0.50687,4727.2,4727.1,8.332]
[1755150100418,0.1056,4727.2,4727.1,8.332]
[1755150100786,0.5611,4727.2,4727.1,8.332]
[1755150101184,1.0127,4727.2,4727.1,8.332]
[1755150101399,1.0127,4727.2,4727.1,5.088]
[1755150101598,1.0127,4727.2,4727.1,8.332]
[1755150101799,1.0127,4727.2,4727.1,5.088]
[1755150102119,1.0127,4727.2,4727.1,8.332]
[1755150102489,1.0127,4727.2,4726.1,0.021]
[1755150102706,0.1056,4726.2,4726.1,0.021]
[1755150103797,0.1056,4726.2,4726.1,3.265]
[1755150109701,0.1056,4726.2,4726.1,3.264]
[1755150111629,0.558,4726.2,4726.1,3.264]
[1755150111952,0.1056,4726.2,4726.1,3.264]
[1755150117419,0.1056,4726.2,4726.1,4.1577]
[1755150117842,0.1056,4726.2,4726.1,3.264]
[1755150124456,0.558,4726.2,4726.1,3.264]
[1755150124844,0.1056,4726.2,4726.1,3.264]
[1755150126669,1.0165,4726.2,4726.1,3.263]
[1755150127634,0.1056,4726.2,4726.1,3.263]
[1755150129337,0.558,4726.2,4726.1,3.263]
[1755150129697,1.0165,4726.2,4726.1,3.263]
[1755150129969,0.558,4726.2,4726.1,3.263]
[1755150130138,0.1056,4726.2,4726.1,3.263]
[1755150131248,0.558,4726.2,4726.1,3.263]
[1755150131646,0.1056,4726.2,4726.1,3.263]
[1755150137076,0.558,4726.2,4726.1,3.263]
[1755150137283,1.0165,4726.2,4726.1,3.263]
[1755150138083,1.0165,4726.2,4726.1,0.021]
[1755150138381,1.0165,4726.2,4726.1,3.262]
[1755150138582,1.41815,4726.2,4726.1,3.262]
[1755150140067,18.91815,4726.2,4726.1,3.262]
[1755150140270,4.41815,4726.2,4726.1,3.262]
[1755150140879,18.91815,4726.2,4726.1,3.262]
[1755150141080,3.0,4726.1,4725.6,5.071]
[1755150141281,5.884922,4726.1,4725.7,3.241]
[1755150141579,0.9297,4726.0,4725.7,3.241]
[1755150142086,0.1056,4725.8,4725.7,3.241]
[1755150142465,1.0353,4725.8,4725.7,3.241]
[1755150142672,6.13642725,4725.8,4725.7,3.241]
[1755150144375,20.63642725,4725.8,4725.7,3.241]
[1755150146680,22.57642725,4725.8,4725.7,3.241]
[1755150147088,22.09162725,4725.8,4725.7,3.241]
[1755150147283,21.64672725,4725.8,4725.7,3.241]
[1755150147682,22.09162725,4725.8,4725.7,3.241]
[1755150147888,22.57642725,4725.8,4725.7,3.241]
[1755150148589,22.09162725,4725.8,4725.7,3.241]
[1755150148980,22.57642725,4725.8,4725.7,3.241]
[1755150149716,19.70672725,4725.8,4725.7,3.241]
[1755150149897,0.1056,4725.8,4725.7,3.241]
[1755150150196,0.1056,4725.8,4725.7,4.156]
[1755150153092,0.1056,4725.9,4725.7,4.156]
[1755150153269,0.1056,4725.9,4725.8,0.915]
[1755150153791,0.1056,4725.9,4725.8,3.24]
[1755150155370,0.1056,4725.9,4725.6,5.071]
[1755150155572,0.4449,4725.8,4725.7,3.24]
[1755150155918,0.1056,4725.9,4725.7,3.43752437]
[1755150156113,0.1056,4725.9,4725.8,0.19752437]
[1755150157513,0.5505,4725.9,4725.8,0.19752437]
[1755150157918,0.1056,4725.9,4725.8,0.19752437]
[1755150158215,1.0353,4725.9,4725.8,0.19752437]
[1755150158601,0.1056,4725.9,4725.8,0.19752437]
[1755150161079,0.1056,4725.9,4725.8,0.19754872]
[1755150161817,0.5505,4725.9,4725.7,3.24]
[1755150162015,0.9297,4725.8,4725.7,3.24]
[1755150162385,0.1056,4725.9,4725.7,3.24]
[1755150167606,0.5505,4725.9,4725.7,3.24]
[1755150167913,0.4449,4725.8,4725.7,3.24]
[1755150168489,0.9297,4725.8,4725.7,3.24]
[1755150168815,0.4449,4725.8,4725.7,3.43762652]
[1755150169017,0.9297,4725.8,4725.7,3.43762652]
[1755150169917,5.6202581,4725.8,4725.7,3.24]
[1755150170122,5.6202581,4725.8,4725.7,0.19764527]
[1755150170302,2.6202581,4725.8,4725.6,5.071]
[1755150170496,1.6905581,4725.8,4725.7,3.239]
[1755150171223,2.6202581,4725.8,4725.7,3.239]
[1755150171397,0.9297,4725.8,4725.7,3.239]
[1755150171598,0.9297,4725.8,4725.1,0.02]
[1755150171808,0.925,4725.7,4725.1,0.02]
[1755150172124,0.1056,4725.2,4725.1,0.02]
[1755150172495,1.0306,4725.2,4725.1,0.02]
[1755150172901,0.925,4725.2,4725.1,3.259]
[1755150173623,0.4404,4725.2,4725.1,3.259]
[1755150173793,0.4846,4725.5,4725.1,3.259]
[1755150173991,0.634182,4725.6,4725.1,3.259]
[1755150173992,0.1118782,4725.4,4725.1,3.259]
[1755150174192,3.0,4725.2,4725.1,3.259]
[1755150174809,0.4404,4725.2,4725.1,3.259]
[1755150175849,0.4404,4725.2,4725.1,0.02]
[1755150176125,0.925,4725.2,4725.1,0.02]
[1755150176325,2.77868782,4725.2,4725.1,0.02]
[1755150176628,2.77868782,4725.2,4725.1,3.258]
[1755150177525,2.29408782,4725.2,4725.1,3.258]
[1755150177940,1.85368782,4725.2,4725.1,3.258]
[1755150179096,2.29408782,4725.2,4725.1,3.258]
[1755150179836,2.29408782,4725.2,4725.1,0.02]
[1755150180005,2.29408782,4725.2,4725.1,3.258]
[1755150180937,1.85368782,4725.2,4725.1,3.258]
[1755150182136,2.29408782,4725.2,4725.1,3.258]
[1755150182303,2.77868782,4725.2,4725.1,3.45558081]
[1755150182505,2.77868782,4725.2,4725.1,0.21758081]
[1755150182731,2.77868782,4725.2,4725.1,3.45558081]
[1755150182912,2.88428782,4725.2,4725.1,3.45558081]
[1755150184537,4.95928782,4725.2,4725.1,3.45558081]
[1755150185707,4.95928782,4725.2,4725.1,3.258]
[1755150185911,4.95928782,4725.2,4725.1,0.02]
[1755150186103,5.88428782,4725.2,4725.1,3.258]
[1755150187333,4.0306,4725.2,4725.1,3.258]
[1755150187547,3.1056,4725.2,4725.1,3.258]
[1755150188825,3.1056,4725.2,4725.1,0.02]
[1755150189009,3.1056,4725.2,4725.1,3.257]
[1755150189710,3.546,4725.2,4725.1,0.02]
[1755150189910,5.20672725,4725.2,4725.1,3.257]
[1755150190503,5.64712725,4725.2,4725.1,3.257]
[1755150190904,5.20672725,4725.2,4725.1,3.257]
[1755150191338,5.64712725,4725.2,4725.1,0.02]
[1755150191508,5.20672725,4725.2,4725.1,3.257]
[1755150191703,6.13172725,4725.2,4725.1,3.257]
[1755150192210,6.13172725,4725.2,4725.1,3.258]
[1755150192848,5.64712725,4725.2,4725.1,3.258]
[1755150193134,5.20672725,4725.2,4725.1,3.258]
[1755150193303,3.1056,4725.2,4725.1,3.258]
[1755150193504,0.1056,4725.2,4725.1,4.1685]
[1755150195751,0.1056,4725.2,4725.1,3.258]
[1755150197253,0.1056,4725.2,4725.1,0.021]
[1755150197539,1.0306,4725.2,4725.1,3.257]
[1755150197726,0.546,4725.2,4725.1,0.021]
[1755150197910,0.546,4725.2,4725.1,3.45472812]
[1755150198912,0.546,4725.2,4725.1,0.21872812]
[1755150199114,1.0306,4725.2,4725.1,3.45472812]
[1755150199937,1.0306,4725.2,4725.1,3.257]
[1755150202845,1.0306,4725.2,4725.1,0.021]
[1755150203046,1.0306,4725.2,4725.1,3.257]
[1755150203852,54.0306,4725.2,4725.1,3.257]
[1755150204055,56.13172725,4725.2,4725.1,3.257]
[1755150205426,55.20672725,4725.2,4725.1,3.257]
[1755150206150,56.10742725,4725.2,4725.1,0.021]
[1755150206352,56.10742725,4725.2,4725.1,3.257]
[1755150207321,3.0,4725.1,4724.7,0.001]
[1755150207542,3.0,4724.9,4724.8,3.236]
[1755150207744,0.9007,4724.9,4724.8,3.236]
[1755150208146,0.9007,4724.9,4724.7,0.001]
[1755150208352,2.10112725,4725.0,4724.8,3.235]
[1755150208762,0.1056,4724.9,4724.8,3.235]
[1755150209072,3.10742725,4724.9,4724.8,3.235]
[1755150210164,3.10742725,4724.9,4724.7,0.001]
[1755150210165,2.20672725,4724.9,4724.7,0.001]
[1755150210373,0.5453,4724.9,4724.8,3.235]
[1755150210569,0.5453,4724.9,4723.1,0.02]
[1755150210570,2.10112725,4724.8,4723.1,0.02]
[1755150210864,3.0,4724.6,4724.5,3.235]
[1755150211165,0.1056,4724.5,4723.1,0.02]
[1755150211464,3.0,4724.3,4723.1,0.02]
[1755150211642,0.1056,4724.2,4723.1,0.02]
[1755150211842,0.1056,4724.2,4724.1,0.9365]
[1755150212163,0.1056,4724.2,4724.1,4.1715]
[1755150214343,0.634089,4725.6,4724.1,4.1715]
[1755150214542,3.002,4726.1,4724.1,4.1715]
[1755150214543,0.1056,4724.3,4724.1,4.1715]
[1755150214747,0.1056,4724.3,4724.1,3.7319]
[1755150215047,0.1056,4724.3,4724.1,3.255]
[1755150215247,0.1056,4724.3,4724.2,8.307]
[1755150222036,0.1056,4724.3,4724.2,5.072]
[1755150222239,1.0063,4724.3,4724.2,8.307]
[1755150223378,1.1703521,4724.3,4724.2,8.307]
[1755150225293,1.1703521,4724.3,4724.2,5.072]
[1755150225477,1.1703521,4724.3,4724.2,8.307]
[1755150226282,1.8046671,4724.3,4724.2,8.307]
[1755150226491,1.8046671,4724.3,4724.1,0.021]
[1755150226783,1.57516671,4724.2,4724.1,0.021]
[1755150227649,1.57516671,4724.2,4724.1,3.256]
[1755150229495,0.67446671,4724.2,4724.1,3.256]
[1755150230064,1.11416671,4724.2,4724.1,3.256]
[1755150230954,1.57516671,4724.2,4724.1,3.256]
[1755150231908,0.9007,4724.2,4724.1,3.256]
[1755150234413,0.9007,4724.2,4723.5,5.072]
[1755150234718,0.9025,4724.1,4723.6,3.235]
[1755150234876,0.9025,4724.0,4723.6,3.235]
[1755150235077,0.1056,4723.7,4723.6,3.235]
[1755150235278,1.0081,4723.7,4723.6,3.235]
[1755150236006,1.642483,4723.7,4723.6,3.235]
[1755150236211,1.8067313,4723.7,4723.6,3.235]
[1755150236779,1.8067313,4723.7,4723.5,5.072]
[1755150237104,0.9042313,4723.7,4723.6,3.235]
[1755150237309,0.739983,4723.7,4723.6,3.235]
[1755150237515,1.642483,4723.7,4723.6,3.235]
[1755150238381,1.642483,4723.7,4723.6,3.236]
[1755150239216,4.642483,4723.7,4723.1,0.02]
[1755150239411,3.9025,4723.6,4723.1,0.02]
[1755150239709,0.1056,4723.2,4723.1,0.02]
[1755150240117,1.0081,4723.2,4723.1,0.02]
[1755150240408,1.0081,4723.2,4723.1,3.255]
[1755150242722,0.5347,4723.2,4723.1,3.255]
[1755150244188,1.0081,4723.2,4722.4,5.073]
[1755150244387,0.32204754,4723.1,4722.4,5.073]
[1755150244899,0.1056,4722.5,4722.4,5.073]
[1755150245394,0.1056,4722.5,4722.4,8.309]
[1755150246137,0.1056,4722.5,4719.7,0.4417]
[1755150246138,3.0,4722.4,4719.7,0.4417]
[1755150246289,15.87028101,4722.2,4720.2,4.1312]
[1755150246623,0.4291,4722.1,4720.3,0.8952]
[1755150246937,1.6772781,4722.3,4720.2,3.236]
[1755150247103,3.0,4722.1,4720.3,0.8952]
[1755150247289,0.9025,4722.0,4720.4,0.4417]
[1755150247492,0.9025,4722.0,4720.2,3.236]
[1755150247493,3.0,4721.7,4720.2,3.236]
[1755150247805,3.4291,4721.7,4720.3,0.8952]
[1755150247993,0.4734,4721.8,4720.3,0.8952]
[1755150248195,0.36304276,4721.8,4720.4,0.8952]
[1755150248397,0.15702761,4722.1,4720.5,0.4417]
[1755150248596,0.4734,4722.3,4720.5,0.8952]
[1755150248903,3.0,4721.9,4720.6,3.241]
[1755150249096,0.9025,4721.8,4720.6,3.241]
[1755150249615,0.9025,4721.7,4720.6,3.241]
[1755150249914,2.1063781,4721.6,4720.6,3.241]
[1755150250129,1.6772781,4721.6,4720.6,3.241]
[1755150250303,0.4291,4721.5,4720.6,3.241]
[1755150251127,0.4734,4721.4,4720.6,3.241]
[1755150251440,0.4291,4721.3,4720.6,3.241]
[1755150251747,0.4291,4721.3,4720.1,0.3617]
[1755150252802,0.4291,4721.3,4720.2,3.24]
[1755150253023,0.4291,4721.7,4720.3,0.4535]
[1755150253428,0.634755,4721.2,4720.3,0.4535]
[1755150254024,0.634755,4721.2,4720.2,3.6017]
[1755150254333,0.1063855,4721.1,4720.2,3.6017]
[1755150254878,0.7411355,4721.1,4720.2,3.6017]
[1755150255603,0.7411355,4721.1,4720.2,3.24]
[1755150255799,1.33213316,4721.1,4720.2,3.24]
[1755150256327,1.33213316,4721.1,4720.3,0.19674901]
[1755150256533,0.18055332,4721.0,4720.4,0.19674901]
[1755150256697,0.18055332,4721.0,4720.5,0.19674901]
[1755150256902,0.4291,4720.9,4720.6,0.19674901]
[1755150257102,0.4291,4720.9,4720.2,3.24]
[1755150257103,0.1056,4720.3,4720.2,3.24]
[1755150257301,0.1056,4720.3,4720.2,3.43675493]
[1755150257903,0.740385,4720.3,4720.2,3.43675493]
[1755150258101,0.740385,4720.3,4720.2,0.19675493]
[1755150258325,0.740385,4720.3,4720.2,3.43475493]
[1755150260309,0.740385,4720.3,4720.2,3.238]
[1755150262061,1.205885,4720.3,4720.1,0.001]
[1755150262230,0.740385,4720.3,4720.2,3.238]
[1755150262719,18.730285,4720.3,4720.2,3.238]
[1755150262923,19.195785,4720.3,4720.2,3.238]
[1755150263154,4.695785,4720.3,4720.2,3.238]
[1755150263356,5.1653635,4720.3,4720.2,3.238]
[1755150268830,4.1043635,4720.3,4720.2,3.238]
[1755150269530,3.0,4720.2,4720.1,0.001]
[1755150269750,1.1043635,4720.3,4720.1,3.239]
[1755150269968,0.634785,4720.3,4720.1,3.239]
[1755150270947,1.100285,4720.3,4720.1,3.239]
[1755150271433,0.634785,4720.3,4720.1,3.239]
[1755150273037,0.634785,4720.3,4720.2,0.19735808]
[1755150274051,0.18055332,4721.0,4720.2,0.19735808]
[1755150274248,0.002,4721.3,4720.3,0.19735808]
[1755150274564,0.634788,4720.9,4720.4,0.19735808]
[1755150274740,3.002,4721.3,4720.5,0.19735808]
[1755150274946,3.002,4721.3,4720.6,0.19735808]
[1755150275156,0.4655,4721.0,4720.7,0.19735808]
[1755150275467,0.54075,4721.0,4720.8,3.43535808]
[1755150275676,0.54075,4721.0,4720.9,0.19735808]
[1755150276370,0.002,4721.3,4720.9,0.19735808]
[1755150276572,0.002,4721.3,4721.0,0.55905808]
[1755150276738,0.002,4721.3,4721.1,1.03595808]
[1755150276943,0.002,4721.3,4721.2,0.19735808]
[1755150278373,0.002,4721.3,4721.2,0.19771688]
[1755150278775,0.1076,4721.3,4721.2,0.19771688]
[1755150281683,0.1076,4721.3,4721.2,1.03631688]
[1755150283154,0.002,4721.3,4721.2,1.03631688]
[1755150284255,0.002,4721.3,4721.2,1.03598177]
[1755150288498,0.002,4721.8,4721.2,1.03598177]
[1755150288792,0.002,4721.8,4721.4,3.0]
[1755150288953,0.002,4721.8,4721.7,0.1056]
[1755150289154,0.002,4721.8,4721.7,1.14158177]
[1755150292789,0.002,4721.8,4721.7,1.14055085]
[1755150293292,0.002,4721.8,4721.7,4.37655085]
[1755150293582,0.02,4722.4,4721.7,4.37655085]
[1755150293782,0.02,4722.4,4722.3,0.1056]
[1755150293985,0.02,4722.4,4722.3,4.37655085]
[1755150295579,0.02,4722.4,4722.3,6.53795085]
[1755150295756,0.02,4722.4,4722.3,7.37655085]
[1755150299268,0.02,4722.4,4722.3,7.01485085]
[1755150299592,0.02,4722.4,4722.3,3.77885085]
[1755150299790,0.02,4722.4,4722.3,6.53695085]
[1755150300366,0.02,4722.4,4722.3,7.37555085]
[1755150300585,0.02,4722.4,4722.3,4.14055085]
[1755150300782,0.02,4722.4,4722.3,7.37555085]
[1755150301005,0.02,4723.4,4722.4,3.0]
[1755150301158,0.02,4723.4,4722.6,3.0]
[1755150301364,0.002,4723.6,4723.3,0.1056]
[1755150301597,0.002,4723.6,4723.4,0.19635085]
[1755150301768,0.002,4723.6,4723.5,0.19635085]
[1755150302318,0.9425,4723.6,4723.5,3.43435085]
[1755150302461,0.9425,4723.6,4723.5,3.43335085]
[1755150303608,1.0481,4723.6,4723.5,3.43335085]
[1755150304365,1.682362,4723.6,4723.5,3.43335085]
[1755150307675,0.741862,4723.6,4723.5,3.43335085]
[1755150307877,1.682362,4723.6,4723.5,3.43335085]
[1755150309597,0.741862,4723.6,4723.5,3.43335085]
[1755150310105,0.002,4723.6,4723.5,3.43335085]
[1755150311101,0.002,4723.6,4723.5,3.53895085]
[1755150311402,0.002,4723.6,4723.5,3.53695085]
[1755150311567,0.002,4723.6,4723.5,0.30195085]
[1755150311773,0.002,4723.6,4723.5,3.53695085]
[1755150312375,0.002,4723.6,4723.5,0.30195085]
[1755150312606,0.002,4723.6,4723.5,3.53695085]
[1755150313301,0.002,4723.6,4723.5,0.30195085]
[1755150313598,0.002,4723.6,4723.5,3.53695085]
[1755150313803,0.002,4723.6,4723.5,0.30195085]
[1755150314104,0.002,4723.6,4723.5,3.53595085]
[1755150314413,0.9425,4723.6,4723.5,0.30195085]
[1755150314595,0.9425,4723.6,4723.5,3.43035085]
[1755150315078,0.9425,4723.6,4723.5,8.50235085]
[1755150315482,0.9425,4723.6,4723.5,5.26835085]
[1755150315799,0.9425,4723.6,4723.5,8.50235085]
[1755150316184,0.9425,4723.6,4723.5,5.26835085]
[1755150316375,0.9425,4723.6,4723.5,8.50235085]
[1755150316579,0.9425,4723.6,4723.5,8.306]
[1755150319892,1.576737,4723.6,4723.5,8.306]
[1755150320418,1.7449707,4723.6,4723.5,5.072]
[1755150320574,1.7449707,4723.6,4723.5,8.306]
[1755150320892,1.7449707,4723.6,4723.5,5.072]
[1755150321228,1.7449707,4723.6,4723.5,8.306]
[1755150321588,1.7449707,4723.6,4721.9,0.001]
[1755150321787,0.1056,4722.4,4722.0,8.308]
[1755150322116,0.8985,4722.3,4722.1,3.235]
[1755150322317,0.1056,4722.4,4722.0,5.073]
[1755150322489,0.8985,4722.2,4722.0,5.073]
[1755150322814,0.634436,4722.3,4722.1,3.235]
[1755150323021,0.1056,4722.4,4722.0,5.073]
[1755150323331,1.532936,4722.3,4722.2,3.235]
[1755150323744,1.638536,4722.3,4722.2,3.235]
[1755150324963,1.188336,4722.3,4722.2,3.235]
[1755150325094,0.740036,4722.3,4722.2,3.235]
[1755150325809,1.188336,4722.3,4722.2,3.235]
[1755150326012,1.638536,4722.3,4722.2,3.235]
[1755150326932,1.638536,4722.3,4722.0,5.073]
[1755150327088,1.190236,4722.3,4722.2,3.235]
[1755150327288,0.740036,4722.3,4722.2,3.235]
[1755150327493,0.740036,4722.3,4722.2,8.308]
[1755150327730,1.638536,4722.3,4722.2,8.308]
[1755150327938,1.638536,4722.3,4722.1,0.001]
[1755150328230,0.740036,4722.3,4722.2,8.308]
[1755150328426,1.188336,4722.3,4722.2,8.308]
[1755150329351,1.188336,4722.3,4722.2,5.073]
[1755150329650,1.638536,4722.3,4722.2,8.308]
[1755150330953,0.740036,4722.3,4722.2,8.308]
[1755150331128,0.634436,4722.3,4722.2,8.308]
[1755150331313,0.1056,4722.6,4722.2,0.8386]
[1755150331513,0.1056,4722.6,4722.3,8.7859]
[1755150331730,0.634366,4722.5,4722.3,8.7859]
[1755150331927,0.1056,4722.6,4722.3,8.309]
[1755150332132,0.1056,4723.1,4722.4,0.9442]
[1755150332843,0.1056,4723.3,4722.7,0.1056]
[1755150333043,0.1056,4723.3,4722.8,3.235]
[1755150333612,0.1056,4723.3,4722.7,0.1056]
[1755150333818,1.0041,4723.3,4722.3,5.074]
[1755150334019,1.0041,4723.3,4722.4,3.3406]
[1755150334366,0.1056,4722.9,4722.4,0.1056]
[1755150334517,0.5539,4722.9,4722.5,3.235]
[1755150334857,0.1056,4722.9,4722.5,3.235]
[1755150335249,0.636287,4723.6,4722.6,0.8386]
[1755150335550,0.1056,4723.3,4722.7,0.1056]
[1755150335735,0.1056,4723.3,4722.8,3.235]
[1755150336153,0.636287,4723.6,4722.8,3.5967]
[1755150336361,0.1076,4723.6,4722.9,0.8386]
[1755150336549,0.002,4723.6,4723.0,0.4673]
[1755150336748,0.002,4723.6,4723.5,0.1056]
[1755150336960,0.002,4723.6,4723.5,4.1792]
[1755150340549,0.002,4723.6,4723.5,7.1792]
[1755150343258,0.002,4723.6,4723.5,6.3406]
[1755150343449,0.002,4723.6,4723.5,3.1056]
[1755150343634,0.9005,4723.6,4723.5,8.4116]
[1755150344377,0.002,4723.6,4723.5,8.4116]
[1755150347351,0.002,4723.6,4723.5,5.1776]
[1755150347551,0.002,4723.6,4723.5,8.306]
[1755150347977,0.002,4723.6,4723.5,8.4116]
[1755150348481,0.4503,4723.6,4723.5,8.4166]
[1755150349185,0.002,4723.6,4723.5,8.4166]
[1755150349394,0.002,4723.6,4723.5,5.1776]
[1755150349685,0.9005,4723.6,4723.5,8.311]
[1755150350577,0.4503,4723.6,4723.5,8.311]
[1755150350778,0.002,4723.6,4723.5,8.311]
[1755150350962,0.4503,4723.6,4723.5,8.311]
[1755150351557,0.002,4723.6,4723.5,8.311]
[1755150351763,0.002,4723.6,4723.5,8.4166]
[1755150352665,0.002,4723.6,4723.5,11.4166]
[1755150352860,0.002,4723.6,4723.5,12.2552]
[1755150353383,0.002,4723.6,4723.5,12.1496]
[1755150353571,0.002,4723.6,4723.5,12.2552]
[1755150354075,0.002,4723.6,4723.5,11.4166]
[1755150356985,0.002,4723.6,4723.5,12.2552]
[1755150358571,0.002,4723.6,4723.5,11.4166]
[1755150359873,0.002,4723.6,4723.5,12.2552]
[1755150360776,0.002,4723.6,4723.5,12.1496]
[1755150360955,0.002,4723.6,4723.5,12.2552]
[1755150361765,0.002,4724.1,4723.6,3.0]
[1755150361960,0.002,4724.1,4723.8,3.0]
[1755150362183,0.002,4724.1,4723.7,6.7273753]
[1755150362184,0.002,4724.1,4724.0,3.1056]
[1755150362361,0.002,4724.1,4724.0,7.1822]
[1755150362887,0.002,4724.1,4724.0,9.8329753]
[1755150363458,0.002,4724.1,4724.0,11.31477038]
[1755150363663,0.002,4724.1,4724.0,11.52437829]
[1755150363968,0.002,4724.1,4724.0,8.87360299]
[1755150364861,0.002,4724.1,4724.0,8.66399508]
[1755150366259,0.002,4724.1,4724.0,8.8611639]
[1755150366788,0.002,4724.1,4724.0,14.44936882]
[1755150367466,0.002,4724.1,4724.0,15.9311639]
[1755150369798,0.002,4724.1,4724.0,13.61076882]
[1755150369969,0.002,4724.1,4724.0,13.60676882]
[1755150370879,0.002,4724.1,4724.0,13.60653056]
[1755150371280,0.002,4724.1,4724.0,16.25272093]
[1755150371805,0.022,4724.4,4724.0,16.25272093]
[1755150372005,0.022,4724.4,4724.2,3.0]
[1755150372169,0.022,4724.4,4724.3,6.43093056]
[1755150372499,0.022,4724.4,4724.3,6.53653056]
[1755150373298,0.022,4724.4,4724.3,9.53530656]
[1755150373503,0.022,4724.4,4724.3,10.01220656]
[1755150373887,0.022,4724.4,4724.3,11.49390755]
[1755150374211,0.022,4724.4,4724.3,15.52293856]
[1755150374417,0.002,4724.6,4724.4,3.63045]
[1755150374721,0.002,4724.6,4724.5,3.43093056]
[1755150375502,0.002,4724.6,4724.5,5.38946882]
[1755150375811,0.002,4724.6,4724.5,8.85676882]
[1755150376219,0.002,4725.1,4724.8,1.48153785]
[1755150376382,0.002,4725.1,4725.0,4.48148148]
[1755150376717,0.002,4725.1,4725.0,8.01786028]
[1755150377021,0.02,4725.4,4725.1,1.48145012]
[1755150377184,0.02,4725.4,4725.0,7.3749788]
[1755150377185,0.02,4725.4,4725.3,3.0]
[1755150377531,0.02,4725.4,4725.3,4.67816622]
[1755150377683,0.02,4725.4,4725.3,0.1967788]
[1755150377883,0.02,4725.4,4725.3,3.5363788]
[1755150378088,0.4556,4725.4,4725.3,3.5363788]
[1755150378289,0.02,4725.4,4725.3,3.5363788]
[1755150380102,0.02,4725.4,4725.3,0.3023788]
[1755150380301,0.9138,4725.4,4725.3,3.5353788]
[1755150380516,0.9138,4725.4,4725.3,0.3023788]
[1755150380827,0.02,4725.4,4725.3,3.5353788]
[1755150381113,0.02,4725.4,4725.3,6.5353788]
[1755150381622,0.945,4725.4,4725.3,6.5363788]
[1755150382688,0.945,4725.4,4725.3,6.5373788]
[1755150385325,0.945,4725.4,4725.3,6.5363788]
[1755150386927,0.945,4725.4,4725.3,6.53665878]
[1755150387127,0.945,4725.4,4725.3,3.30265878]
[1755150387336,0.945,4725.4,4725.3,8.37165878]
[1755150387630,0.945,4725.4,4725.3,8.60465878]
[1755150387801,0.945,4725.4,4725.3,11.60465878]
[1755150387999,0.02,4725.4,4725.3,11.60465878]
[1755150388399,0.4835,4725.4,4725.3,11.60465878]
[1755150388724,0.945,4725.4,4725.3,11.60465878]
[1755150392733,0.022,4725.4,4725.3,11.60465878]
[1755150393108,0.002,4725.6,4725.5,1.48132472]
[1755150393298,0.002,4725.6,4725.5,7.9103835]
[1755150396337,0.002,4725.6,4725.5,7.71332472]
[1755150396534,0.002,4725.9,4725.8,1.48123069]
[1755150396737,0.002,4725.9,4725.8,7.71323069]
[1755150396936,0.002,4725.9,4725.8,7.81883069]
[1755150398646,0.002,4725.9,4725.8,6.3376]
[1755150399517,0.002,4725.9,4725.8,4.58683069]
[1755150399719,0.002,4725.9,4725.8,6.3376]
[1755150400657,0.002,4725.9,4725.8,7.81883069]